bitfinex-derivatives/quotes_BNBF0:USTF0_20260114
["timestamp","ask_amount","ask_price","bid_price","bid_amount"]
[1768370958497,0.81867766,937.58,936.62,0.18548475]
[1768370958697,0.81867766,937.57,936.62,0.18548475]
[1768370958902,0.81867766,937.56,936.62,0.18548475]
[1768370959099,0.81867766,937.55,936.62,0.18548475]
[1768370959302,0.81867766,937.54,936.62,0.18548475]
[1768370959603,0.81867766,937.53,936.62,0.18548475]
[1768370959798,0.81867766,937.52,936.62,0.18548475]
[1768370959996,0.81867766,937.51,936.62,0.18548475]
[1768370960201,0.81867766,937.5,936.62,0.18548475]
[1768370960403,0.81867766,937.49,936.62,0.18548475]
[1768370960604,0.81867766,937.48,936.62,0.18548475]
[1768370960800,0.81867766,937.47,936.62,0.18548475]
[1768370961102,3.6976182,939.55,936.62,0.18548475]
[1768370961103,0.81867766,937.46,936.62,0.18548475]
[1768370961402,0.81867766,937.45,936.62,0.18548475]
[1768370961602,0.81867766,937.44,936.62,0.18548475]
[1768370961902,0.81867766,937.43,936.62,0.18548475]
[1768370962103,0.81867766,937.42,936.62,0.18548475]
[1768370962303,0.81867766,937.41,936.62,0.18548475]
[1768370962598,0.81867766,937.4,936.62,0.18548475]
[1768370962803,0.81988051,937.39,936.62,0.18548475]
[1768370963004,0.00995509,938.35,936.62,0.18548475]
[1768370963402,3.6976182,939.57,936.62,0.18548475]
[1768370963905,0.01105233,939.29,936.62,0.18548475]
[1768370964404,3.6976182,939.56,936.62,0.18548475]
[1768370965405,3.6976182,939.55,936.62,0.18548475]
[1768370967509,3.6976182,939.56,936.62,0.18548475]
[1768370968407,3.6976182,939.57,936.62,0.18548475]
[1768370969510,3.6976182,939.63,936.62,0.18548475]
[1768370970705,3.6976182,939.64,936.62,0.18548475]
[1768370972711,3.6976182,939.65,936.62,0.18548475]
[1768370974913,0.79611185,939.64,936.62,0.18548475]
[1768370975212,0.79611185,939.63,936.62,0.18548475]
[1768370975413,0.79611185,939.62,936.62,0.18548475]
[1768370975608,0.79611185,939.61,936.62,0.18548475]
[1768370975809,0.79611185,939.6,936.62,0.18548475]
[1768370976012,0.79611185,939.59,936.62,0.18548475]
[1768370976214,0.79611185,939.58,936.62,0.18548475]
[1768370976413,0.79611185,939.57,936.62,0.18548475]
[1768370976614,0.79611185,939.56,936.62,0.18548475]
[1768370976810,0.79611185,939.55,936.62,0.18548475]
[1768370977009,0.79611185,939.54,936.62,0.18548475]
[1768370977213,0.79611185,939.53,936.62,0.18548475]
[1768370977511,0.79611185,939.52,936.62,0.18548475]
[1768370977710,0.79611185,939.51,936.62,0.18548475]
[1768370977914,0.79611185,939.5,936.62,0.18548475]
[1768370978212,0.79611185,939.49,936.62,0.18548475]
[1768370978411,0.79611185,939.48,936.62,0.18548475]
[1768370978716,0.79611185,939.47,936.62,0.18548475]
[1768370979011,0.79611185,939.46,936.62,0.18548475]
[1768370979214,0.79611185,939.45,936.62,0.18548475]
[1768370979410,0.79611185,939.44,936.62,0.18548475]
[1768370979617,0.79611185,939.43,936.62,0.18548475]
[1768370979816,0.79611185,939.42,936.62,0.18548475]
[1768370980011,0.79611185,939.41,936.62,0.18548475]
[1768370980316,0.79611185,939.4,936.62,0.18548475]
[1768370980515,0.79611185,939.39,936.62,0.18548475]
[1768370980715,0.79611185,939.38,936.62,0.18548475]
[1768370981016,0.79611185,939.37,936.62,0.18548475]
[1768370981312,0.79611185,939.36,936.62,0.18548475]
[1768370981515,0.79611185,939.35,936.62,0.18548475]
[1768370981716,0.79611185,939.34,936.62,0.18548475]
[1768370982016,0.79611185,939.33,936.62,0.18548475]
[1768370982216,0.79611185,939.32,936.62,0.18548475]
[1768370982513,0.79611185,939.31,936.62,0.18548475]
[1768370982716,3.6976182,939.65,936.62,0.18548475]
[1768370982717,0.79611185,939.3,936.62,0.18548475]
[1768370982917,5.2823117,940.18,936.62,0.18548475]
[1768370982918,0.79611185,939.29,936.62,0.18548475]
[1768370983116,0.79611185,939.28,936.62,0.18548475]
[1768370983315,0.79611185,939.27,936.62,0.18548475]
[1768370983518,0.79611185,939.26,936.62,0.18548475]
[1768370983818,0.79611185,939.25,936.62,0.18548475]
[1768370984018,0.79611185,939.24,936.62,0.18548475]
[1768370984218,0.79611185,939.23,936.62,0.18548475]
[1768370984422,0.79611185,939.22,936.62,0.18548475]
[1768370984618,0.79611185,939.21,936.62,0.18548475]
[1768370984816,0.79611185,939.2,936.62,0.18548475]
[1768370985017,0.79611185,939.19,936.62,0.18548475]
[1768370985220,0.79611185,939.18,936.62,0.18548475]
[1768370985518,0.79611185,939.17,936.62,0.18548475]
[1768370985718,0.79611185,939.16,936.62,0.18548475]
[1768370986021,0.79611185,939.15,936.62,0.18548475]
[1768370986321,0.79611185,939.14,936.62,0.18548475]
[1768370986521,0.79611185,939.13,936.62,0.18548475]
[1768370986720,0.79611185,939.12,936.62,0.18548475]
[1768370986922,0.79611185,939.11,936.62,0.18548475]
[1768370987121,0.79611185,939.1,936.62,0.18548475]
[1768370987318,0.79611185,939.09,936.62,0.18548475]
[1768370987524,0.79611185,939.08,936.62,0.18548475]
[1768370987720,0.79611185,939.07,936.62,0.18548475]
[1768370987920,0.79611185,939.06,936.62,0.18548475]
[1768370988224,0.79611185,939.05,936.62,0.18548475]
[1768370988421,0.79611185,939.04,936.62,0.18548475]
[1768370988626,0.79611185,939.03,936.62,0.18548475]
[1768370988924,0.79611185,939.02,936.62,0.18548475]
[1768370989225,0.79611185,939.01,936.7,2.653779]
[1768370989425,0.79611185,939.0,936.7,2.653779]
[1768370989625,0.79611185,938.99,936.67,2.653779]
[1768370989824,0.79611185,938.98,936.67,2.653779]
[1768370990127,0.79611185,938.97,936.67,2.653779]
[1768370990326,0.79611185,938.96,936.67,2.653779]
[1768370990526,0.79611185,938.95,936.67,2.653779]
[1768370990726,0.79611185,938.94,936.62,0.18548475]
[1768370990926,0.79611185,938.93,936.62,0.18548475]
[1768370991126,0.79611185,938.92,936.62,0.18548475]
[1768370991322,0.79611185,938.91,936.62,0.18548475]
[1768370991625,0.79611185,938.9,936.62,0.18548475]
[1768370991824,0.79611185,938.89,936.62,0.18548475]
[1768370992023,0.79611185,938.88,936.62,0.18548475]
[1768370992227,0.79611185,938.87,936.62,0.18548475]
[1768370992528,0.79611185,938.86,936.62,0.18548475]
[1768370992827,0.79611185,938.85,936.62,0.18548475]
[1768370993025,0.79611185,938.84,936.62,0.18548475]
[1768370993227,0.79611185,938.83,936.62,0.18548475]
[1768370993425,0.79611185,938.82,936.62,0.18548475]
[1768370993624,0.79611185,938.81,936.62,0.18548475]
[1768370993926,0.79611185,938.8,936.62,0.18548475]
[1768370994123,0.79611185,938.79,936.62,0.18548475]
[1768370994328,0.79611185,938.78,936.62,0.18548475]
[1768370994524,0.79611185,938.77,936.62,0.18548475]
[1768370994828,0.79611185,938.76,936.62,0.18548475]
[1768370995126,0.79611185,938.75,936.62,0.18548475]
[1768370995330,0.79611185,938.74,936.62,0.18548475]
[1768370995626,0.79611185,938.73,936.62,0.18548475]
[1768370995829,0.79611185,938.72,936.62,0.18548475]
[1768370996029,0.79611185,938.71,936.62,0.18548475]
[1768370996226,0.79611185,938.7,936.62,0.18548475]
[1768370996425,0.79611185,938.69,936.62,0.18548475]
[1768370996630,0.79611185,938.68,936.62,0.18548475]
[1768370996830,0.79611185,938.67,936.62,0.18548475]
[1768370997123,0.79611185,938.66,936.62,0.18548475]
[1768370997326,0.79611185,938.65,936.62,0.18548475]
[1768370997529,0.79611185,938.64,936.62,0.18548475]
[1768370997724,0.79611185,938.63,936.62,0.18548475]
[1768370998029,0.79611185,938.62,936.62,0.18548475]
[1768370998324,0.79611185,938.61,936.62,0.18548475]
[1768370998530,0.79611185,938.6,936.62,0.18548475]
[1768370998729,0.79611185,938.59,936.62,0.18548475]
[1768370999026,0.79611185,938.58,936.62,0.18548475]
[1768370999226,0.79611185,938.57,936.62,0.18548475]
[1768370999426,0.79611185,938.56,936.62,0.18548475]
[1768370999626,0.79611185,938.55,936.62,0.18548475]
[1768370999827,0.79611185,938.54,936.62,0.18548475]
[1768371000031,0.79611185,938.53,936.62,0.18548475]
[1768371000229,0.79611185,938.52,936.62,0.18548475]
[1768371000434,0.79611185,938.51,936.62,0.18548475]
[1768371000633,0.79611185,938.5,936.62,0.18548475]
[1768371000832,0.79611185,938.49,936.62,0.18548475]
[1768371001132,0.79611185,938.48,936.62,0.18548475]
[1768371001429,0.79611185,938.47,936.62,0.18548475]
[1768371001633,0.79611185,938.46,936.62,0.18548475]
[1768371001928,0.79611185,938.45,936.62,0.18548475]
[1768371002127,0.79611185,938.44,936.62,0.18548475]
[1768371002430,0.79611185,938.43,936.62,0.18548475]
[1768371002633,0.79611185,938.42,936.62,0.18548475]
[1768371002831,0.79611185,938.41,936.62,0.18548475]
[1768371003030,0.79611185,938.4,936.62,0.18548475]
[1768371003228,0.79611185,938.39,936.62,0.18548475]
[1768371003433,0.79611185,938.38,936.62,0.18548475]
[1768371003733,0.79611185,938.37,936.62,0.18548475]
[1768371003930,0.79611185,938.36,936.62,0.18548475]
[1768371004229,0.79611185,938.35,936.62,0.18548475]
[1768371004429,0.79611185,938.34,936.62,0.18548475]
[1768371004733,0.79611185,938.33,936.62,0.18548475]
[1768371004934,0.79611185,938.32,936.62,0.18548475]
[1768371005132,0.79611185,938.31,936.62,0.18548475]
[1768371005434,0.79611185,938.3,936.62,0.18548475]
[1768371005736,0.79611185,938.29,936.62,0.18548475]
[1768371005935,0.79611185,938.28,936.62,0.18548475]
[1768371006133,0.79611185,938.27,936.62,0.18548475]
[1768371006434,0.79611185,938.26,936.62,0.18548475]
[1768371006630,0.79611185,938.25,936.62,0.18548475]
[1768371006835,0.79611185,938.24,936.62,0.18548475]
[1768371007130,0.79611185,938.23,936.62,0.18548475]
[1768371007332,0.79611185,938.22,936.62,0.18548475]
[1768371007537,0.79611185,938.21,936.62,0.18548475]
[1768371007831,0.79611185,938.2,936.62,0.18548475]
[1768371008135,0.79611185,938.19,936.62,0.18548475]
[1768371008331,0.79611185,938.18,936.62,0.18548475]
[1768371008534,0.79611185,938.17,936.62,0.18548475]
[1768371008736,0.79611185,938.16,936.62,0.18548475]
[1768371008932,0.79611185,938.15,936.62,0.18548475]
[1768371009134,0.79611185,938.14,936.62,0.18548475]
[1768371009333,0.79611185,938.13,936.62,0.18548475]
[1768371009533,0.79611185,938.12,936.62,0.18548475]
[1768371009836,0.79611185,938.11,936.62,0.18548475]
[1768371010037,0.19330862,939.08,936.62,0.18548475]
[1768371010336,0.78267032,939.07,936.62,0.18548475]
[1768371010536,0.78267032,939.06,936.62,0.18548475]
[1768371010732,0.78267032,939.05,936.62,0.18548475]
[1768371010932,0.78267032,939.04,936.62,0.18548475]
[1768371011137,0.78267032,939.03,936.62,0.18548475]
[1768371011338,0.78267032,939.02,936.62,0.18548475]
[1768371011550,0.78267032,939.01,936.62,0.18548475]
[1768371011833,0.78267032,939.0,936.62,0.18548475]
[1768371012032,0.78267032,938.99,936.62,0.18548475]
[1768371012233,0.18543978,939.21,936.62,0.18548475]
[1768371012234,0.78267032,938.98,936.62,0.18548475]
[1768371012435,0.78267032,938.97,936.62,0.18548475]
[1768371012735,0.78267032,938.96,936.62,0.18548475]
[1768371013035,0.78267032,938.95,936.62,0.18548475]
[1768371013237,0.78267032,938.94,936.62,0.18548475]
[1768371013435,0.78267032,938.93,936.62,0.18548475]
[1768371013636,0.78267032,938.92,936.62,0.18548475]
[1768371013936,0.78267032,938.91,936.62,0.18548475]
[1768371014136,0.78267032,938.9,936.62,0.18548475]
[1768371014340,0.78267032,938.89,936.62,0.18548475]
[1768371014637,0.78267032,938.88,936.62,0.18548475]
[1768371014938,0.78267032,938.87,936.62,0.18548475]
[1768371015135,0.78267032,938.86,936.62,0.18548475]
[1768371015340,0.78233796,938.85,936.62,0.18548475]
[1768371015542,0.78233796,938.84,936.62,0.18548475]
[1768371015736,0.78233796,938.83,936.62,0.18548475]
[1768371015939,0.78233796,938.82,936.62,0.18548475]
[1768371016138,0.78233796,938.81,936.62,0.18548475]
[1768371016341,0.78233796,938.8,936.62,0.18548475]
[1768371016542,0.78233796,938.79,936.62,0.18548475]
[1768371016742,0.78233796,938.78,936.62,0.18548475]
[1768371016943,0.78233796,938.77,936.62,0.18548475]
[1768371017244,0.78233796,938.76,936.62,0.18548475]
[1768371017444,0.78233796,938.75,936.62,0.18548475]
[1768371017640,0.78233796,938.74,936.62,0.18548475]
[1768371017844,0.78233796,938.73,936.62,0.18548475]
[1768371018044,0.78233796,938.72,936.62,0.18548475]
[1768371018345,0.78233796,938.71,936.62,0.18548475]
[1768371018545,0.78233796,938.7,936.62,0.18548475]
[1768371018744,0.78233796,938.69,936.64,2.653779]
[1768371019044,0.78233796,938.68,936.64,2.653779]
[1768371019243,0.78233796,938.67,936.64,2.653779]
[1768371019441,0.78233796,938.66,936.64,2.653779]
[1768371019742,0.78233796,938.65,936.64,2.653779]
[1768371019945,0.78233796,938.64,936.64,2.653779]
[1768371020141,0.78233796,938.63,936.64,2.653779]
[1768371020440,0.78233796,938.62,936.65,2.653779]
[1768371020646,0.78233796,938.61,936.65,2.653779]
[1768371020945,0.78233796,938.6,936.65,2.653779]
[1768371021144,0.78233796,938.59,936.65,2.653779]
[1768371021346,0.78233796,938.58,936.65,2.653779]
[1768371021542,0.78233796,938.57,936.66,2.653779]
[1768371021842,0.78233796,938.56,936.66,2.653779]
[1768371022040,0.78233796,938.55,936.66,2.653779]
[1768371022239,0.78233796,938.54,936.66,2.653779]
[1768371022441,0.78233796,938.53,936.68,2.653779]
[1768371022642,0.78233796,938.52,936.68,2.653779]
[1768371022845,0.78233796,938.51,936.68,2.653779]
[1768371023046,0.78233796,938.5,936.68,2.653779]
[1768371023245,0.78233796,938.49,936.68,2.653779]
[1768371023444,0.78233796,938.48,936.69,2.653779]
[1768371023745,0.78233796,938.47,936.69,2.653779]
[1768371023943,0.78233796,938.46,936.69,2.653779]
[1768371024147,0.78378394,938.45,936.69,2.653779]
[1768371024347,0.78378394,938.44,936.69,2.653779]
[1768371024548,0.78378394,938.43,936.71,2.653779]
[1768371024744,0.78378394,938.42,936.71,2.653779]
[1768371024945,0.78378394,938.41,936.71,2.653779]
[1768371025149,0.78378394,938.4,936.71,2.653779]
[1768371025449,0.78378394,938.39,936.71,2.653779]
[1768371025649,0.78378394,938.38,936.73,2.653779]
[1768371025947,0.78378394,938.37,936.73,2.653779]
[1768371026247,0.78378394,938.36,936.73,2.653779]
[1768371026450,0.78378394,938.35,936.73,2.653779]
[1768371026644,0.78378394,938.34,936.75,2.653779]
[1768371026846,0.78378394,938.33,936.75,2.653779]
[1768371027044,0.78378394,938.32,936.75,2.653779]
[1768371027345,0.78378394,938.31,936.75,2.653779]
[1768371027546,0.78378394,938.3,936.75,2.653779]
[1768371027747,0.78378394,938.29,936.76,2.653779]
[1768371027946,0.78378394,938.28,936.76,2.653779]
[1768371028146,0.78378394,938.27,936.69,2.653779]
[1768371028350,0.78378394,938.26,936.69,2.653779]
[1768371028545,0.78378394,938.25,936.69,2.653779]
[1768371028849,0.78378394,938.24,936.71,2.653779]
[1768371029049,0.78378394,938.23,936.71,2.653779]
[1768371029246,0.78378394,938.22,936.71,2.653779]
[1768371029445,0.78378394,938.21,936.71,2.653779]
[1768371029644,0.78378394,938.2,936.71,2.653779]
[1768371029850,0.78378394,938.19,936.74,2.653779]
[1768371030149,0.78378394,938.18,936.74,2.653779]
[1768371030446,0.78378394,938.17,936.76,2.653779]
[1768371030648,0.78378394,938.16,936.76,2.653779]
[1768371030849,0.78378394,938.15,936.76,2.653779]
[1768371031047,0.78378394,938.14,936.76,2.653779]
[1768371031252,0.78378394,938.13,936.78,2.653779]
[1768371031452,0.78378394,938.12,936.78,2.653779]
[1768371031648,0.78378394,938.11,936.78,2.653779]
[1768371031948,0.78378394,938.1,936.78,2.653779]
[1768371032150,0.78378394,938.09,936.78,2.653779]
[1768371032352,0.78378394,938.08,936.8,2.653779]
[1768371032550,0.78378394,938.07,936.8,2.653779]
[1768371032752,0.78378394,938.06,936.8,2.653779]
[1768371033052,0.78378394,938.05,936.8,2.653779]
[1768371033354,0.78378394,938.04,936.81,2.653779]
[1768371033553,0.78378394,938.03,936.81,2.653779]
[1768371033754,0.78378394,938.02,936.81,2.653779]
[1768371034048,0.01212899,938.99,936.81,2.653779]
[1768371034049,0.78378394,938.01,936.81,2.653779]
[1768371034251,0.78378394,938.0,936.81,2.653779]
[1768371034450,0.78378394,937.99,936.81,2.653779]
[1768371034648,0.78378394,937.98,936.81,2.653779]
[1768371034853,0.78378394,937.97,936.81,2.653779]
[1768371035155,0.18543978,939.21,936.81,2.653779]
[1768371035351,0.78705134,939.2,936.81,2.653779]
[1768371035554,0.00858036,938.91,936.81,2.653779]
[1768371035854,0.78705134,938.9,936.81,2.653779]
[1768371036054,0.78705134,938.89,936.81,2.653779]
[1768371036254,0.78705134,938.88,936.81,2.653779]
[1768371036454,0.78705134,938.87,936.82,2.653779]
[1768371036654,0.78705134,938.86,936.82,2.653779]
[1768371036853,0.78705134,938.85,936.82,2.653779]
[1768371037151,0.78705134,938.84,936.82,2.653779]
[1768371037353,0.78705134,938.83,936.82,2.653779]
[1768371037558,0.78705134,938.82,936.81,2.653779]
[1768371037753,0.78705134,938.81,936.81,2.653779]
[1768371037954,0.78705134,938.8,936.81,2.653779]
[1768371038154,0.78705134,938.79,936.81,2.653779]
[1768371038355,0.78705134,938.78,936.81,2.653779]
[1768371038554,0.78705134,938.77,936.82,2.653779]
[1768371038754,0.78705134,938.76,936.82,2.653779]
[1768371038952,0.78705134,938.75,936.82,2.653779]
[1768371039153,0.78705134,938.74,936.82,2.653779]
[1768371039354,0.78705134,938.73,936.82,2.653779]
[1768371039556,0.78705134,938.72,936.83,2.653779]
[1768371039751,0.78705134,938.71,936.83,2.653779]
[1768371040056,0.78705134,938.7,936.83,2.653779]
[1768371040255,0.78705134,938.69,936.83,2.653779]
[1768371040555,0.78705134,938.68,936.83,2.653779]
[1768371040754,0.78705134,938.67,936.83,2.653779]
[1768371040951,0.78705134,938.66,936.83,2.653779]
[1768371041252,0.00943028,939.84,937.05,2.653779]
[1768371041253,0.78705134,938.65,937.05,2.653779]
[1768371041456,0.78705134,938.64,937.05,2.653779]
[1768371041754,0.78705134,938.63,937.19,2.653779]
[1768371041955,0.78705134,938.62,937.19,2.653779]
[1768371042153,0.78705134,938.61,937.19,2.653779]
[1768371042352,0.78705134,938.6,937.19,2.653779]
[1768371042550,0.78705134,938.59,937.19,2.653779]
[1768371042752,0.78705134,938.58,937.17,2.653779]
[1768371042956,0.78705134,938.57,937.17,2.653779]
[1768371043154,0.78705134,938.56,937.16,2.653779]
[1768371043355,0.78705134,938.55,937.16,2.653779]
[1768371043554,0.78705134,938.54,937.16,2.653779]
[1768371043858,0.78705134,938.53,937.18,2.653779]
[1768371044060,0.78705134,938.52,937.18,2.653779]
[1768371044258,0.78705134,938.51,937.18,2.653779]
[1768371044456,0.18538792,939.64,937.18,2.653779]
[1768371044457,0.78705134,938.5,937.18,2.653779]
[1768371044665,0.78705134,938.49,937.18,2.653779]
[1768371044961,0.78705134,938.48,936.84,2.653779]
[1768371045156,0.78705134,938.47,936.84,2.653779]
[1768371045358,0.78705134,938.46,936.75,2.653779]
[1768371045561,0.78705134,938.45,936.75,2.653779]
[1768371045764,0.78705134,938.44,936.75,2.653779]
[1768371045960,0.78705134,938.43,936.75,2.653779]
[1768371046162,0.78705134,938.42,936.75,2.653779]
[1768371046362,0.78705134,938.41,936.76,2.653779]
[1768371046558,0.78705134,938.4,936.76,2.653779]
[1768371046762,0.78705134,938.39,936.76,2.653779]
[1768371046962,0.78705134,938.38,936.87,2.653779]
[1768371047162,0.78705134,938.37,936.87,2.653779]
[1768371047462,0.78705134,938.36,936.89,2.653779]
[1768371047660,0.78705134,938.35,936.89,2.653779]
[1768371047862,0.78705134,938.34,936.89,2.653779]
[1768371048063,0.78705134,938.33,936.93,2.653779]
[1768371048261,0.78705134,938.32,936.93,2.653779]
[1768371048462,0.78705134,938.31,936.92,2.653779]
[1768371048759,0.78705134,938.3,936.92,2.653779]
[1768371049059,0.78705134,938.29,936.92,2.653779]
[1768371049265,0.78705134,938.28,936.92,2.653779]
[1768371049460,0.78705134,938.27,936.92,2.653779]
[1768371049670,0.01107799,939.23,937.0,2.653779]
[1768371049869,0.78466019,939.22,937.0,2.653779]
[1768371050065,0.78466019,939.21,937.01,2.653779]
[1768371050265,0.78466019,939.2,937.01,2.653779]
[1768371050569,0.78466019,939.19,937.15,2.653779]
[1768371050767,0.78466019,939.18,937.15,2.653779]
[1768371050965,0.78466019,939.17,937.15,2.653779]
[1768371051168,0.78464216,939.16,937.15,2.653779]
[1768371051368,0.78464216,939.15,937.15,2.653779]
[1768371051569,0.78464216,939.14,937.14,2.653779]
[1768371051765,0.78464216,939.13,937.14,2.653779]
[1768371051968,0.78450609,939.12,937.14,2.653779]
[1768371052168,0.78450609,939.11,937.14,2.653779]
[1768371052371,0.78450609,939.1,937.14,2.653779]
[1768371052568,0.78450609,939.09,937.14,2.653779]
[1768371052872,0.78450609,939.08,937.14,2.653779]
[1768371053067,0.78450609,939.07,937.14,2.653779]
[1768371053271,0.78450609,939.06,937.14,2.653779]
[1768371053572,0.78450609,939.05,937.14,2.653779]
[1768371053770,0.78450609,939.04,937.13,2.653779]
[1768371053968,0.78450609,939.03,937.13,2.653779]
[1768371054266,0.78450609,939.02,937.13,2.653779]
[1768371054471,0.78450609,939.01,937.13,2.653779]
[1768371054672,0.78450609,939.0,937.13,2.653779]
[1768371054972,0.78450609,938.99,937.03,2.653779]
[1768371055272,0.78450609,938.98,937.02,2.653779]
[1768371055468,0.78450609,938.97,937.02,2.653779]
[1768371055668,0.78450609,938.96,937.02,2.653779]
[1768371055873,0.78450609,938.95,937.02,2.653779]
[1768371056173,0.78450609,938.94,937.02,2.653779]
[1768371056372,0.78450609,938.93,937.02,2.653779]
[1768371056572,0.78450609,938.92,937.02,2.653779]
[1768371056770,0.78450609,938.91,937.02,2.653779]
[1768371056971,0.78450609,938.9,937.02,2.653779]
[1768371057170,0.78450609,938.89,937.02,2.653779]
[1768371057370,0.78450609,938.88,937.01,2.653779]
[1768371057675,0.78450609,938.87,937.01,2.653779]
[1768371057874,0.78450609,938.86,937.01,2.653779]
[1768371058070,0.78450609,938.85,937.01,2.653779]
[1768371058274,0.78450609,938.84,937.01,2.653779]
[1768371058574,0.78450609,938.83,937.0,2.653779]
[1768371058769,0.78450609,938.82,937.0,2.653779]
[1768371058969,0.78450609,938.81,937.0,2.653779]
[1768371059170,0.78450609,938.8,937.0,2.653779]
[1768371059372,0.78450609,938.79,936.99,2.653779]
[1768371059571,0.78450609,938.78,936.99,2.653779]
[1768371059771,0.78450609,938.77,936.99,2.653779]
[1768371060070,0.78450609,938.76,936.98,2.653779]
[1768371060275,0.78343208,938.75,936.98,2.653779]
[1768371060475,0.78343208,938.74,936.94,2.653779]
[1768371060671,0.78343208,938.73,936.82,2.653779]
[1768371060875,0.78343208,938.72,936.82,2.653779]
[1768371061172,0.78343208,938.71,936.82,2.653779]
[1768371061472,0.78343208,938.7,936.82,2.653779]
[1768371061675,0.78343208,938.69,936.82,2.653779]
[1768371061874,0.78343208,938.68,936.82,2.653779]
[1768371062072,0.78343208,938.67,936.82,2.653779]
[1768371062272,0.78343208,938.66,936.85,2.653779]
[1768371062472,0.78343208,938.65,936.85,2.653779]
[1768371062676,0.78343208,938.64,936.85,2.653779]
[1768371062973,0.78343208,938.63,936.9,2.653779]
[1768371063176,0.78343208,938.62,936.9,2.653779]
[1768371063376,0.78343208,938.61,936.92,2.653779]
[1768371063572,0.78343208,938.6,936.92,2.653779]
[1768371063776,0.78343208,938.59,936.92,2.653779]
[1768371063973,0.78343208,938.58,936.92,2.653779]
[1768371064272,0.78343208,938.57,936.92,2.653779]
[1768371064473,0.78343208,938.56,936.92,2.653779]
[1768371064776,0.78343208,938.55,936.92,2.653779]
[1768371065076,0.78343208,938.54,936.92,2.653779]
[1768371065273,0.78343208,938.53,936.92,2.653779]
[1768371065473,0.78343208,938.52,936.92,2.653779]
[1768371065773,0.78343208,938.51,936.92,2.653779]
[1768371065976,0.78319273,938.5,936.92,2.653779]
[1768371066173,0.78319273,938.49,936.92,2.653779]
[1768371066378,0.78319273,938.48,936.92,2.653779]
[1768371066674,0.78319273,938.47,936.92,2.653779]
[1768371066874,0.78319273,938.46,936.92,2.653779]
[1768371067079,0.78319273,938.45,936.92,2.653779]
[1768371067378,0.78319273,938.44,936.93,2.653779]
[1768371067577,0.78319273,938.43,936.93,2.653779]
[1768371067775,0.01151297,939.39,936.93,2.653779]
[1768371067977,0.78316679,939.38,936.93,2.653779]
[1768371068278,0.78316679,939.37,936.93,2.653779]
[1768371068475,0.78316679,939.36,936.93,2.653779]
[1768371068679,0.78316679,939.35,936.93,2.653779]
[1768371068876,0.78316679,939.34,936.93,2.653779]
[1768371069080,0.78316679,939.33,936.93,2.653779]
[1768371069276,0.78316679,939.32,936.93,2.653779]
[1768371069480,0.78316679,939.31,936.93,2.653779]
[1768371069677,0.78316679,939.3,936.93,2.653779]
[1768371069976,0.78316679,939.29,936.93,2.653779]
[1768371070178,0.78311689,939.28,936.93,2.653779]
[1768371070376,0.78311689,939.27,936.93,2.653779]
[1768371070577,0.78311689,939.26,936.93,2.653779]
[1768371070881,0.78311689,939.25,936.93,2.653779]
[1768371071082,0.78311689,939.24,936.95,2.653779]
[1768371071379,0.78311689,939.23,936.95,2.653779]
[1768371071684,0.78311689,939.22,936.95,2.653779]
[1768371071883,0.78311689,939.21,936.95,2.653779]
[1768371072181,0.78311689,939.2,936.95,2.653779]
[1768371072380,0.78311689,939.19,936.95,2.653779]
[1768371072580,0.78311689,939.18,936.95,2.653779]
[1768371072783,0.78311689,939.17,936.95,2.653779]
[1768371072979,0.78311689,939.16,936.95,2.653779]
[1768371073179,0.18538792,939.64,936.95,2.653779]
[1768371073180,0.78311689,939.15,936.95,2.653779]
[1768371073381,0.78311689,939.14,936.95,2.653779]
[1768371073583,0.78311689,939.13,936.95,2.653779]
[1768371073781,0.78311689,939.12,936.95,2.653779]
[1768371073982,0.78311689,939.11,936.95,2.653779]
[1768371074184,0.78311689,939.1,936.95,2.653779]
[1768371074482,0.78311689,939.09,936.95,2.653779]
[1768371074682,0.78311689,939.08,936.95,2.653779]
[1768371074882,0.78311689,939.07,936.95,2.653779]
[1768371075183,0.78311689,939.06,936.96,2.653779]
[1768371075385,0.78311689,939.05,936.96,2.653779]
[1768371075581,0.78311689,939.04,936.96,2.653779]
[1768371075886,0.78311689,939.03,936.96,2.653779]
[1768371076182,0.78311689,939.02,936.96,2.653779]
[1768371076484,0.78311689,939.01,936.97,2.653779]
[1768371076685,0.78311689,939.0,936.97,2.653779]
[1768371076885,0.78311689,938.99,936.97,2.653779]
[1768371077086,0.78311689,938.98,936.97,2.653779]
[1768371077286,0.78311689,938.97,936.98,2.653779]
[1768371077484,0.78311689,938.96,936.98,2.653779]
[1768371077787,0.78311689,938.95,936.98,2.653779]
[1768371078087,0.78311689,938.94,936.98,2.653779]
[1768371078284,0.78311689,938.93,936.99,2.653779]
[1768371078483,0.78311689,938.92,936.99,2.653779]